Cogmind - Beta 15 @@@ ROGUE MODE // 2025.06.30 @ 17:57:16 Player: f3-rnm Result: Destroyed by 2D-WPX(j) with Overtuned Pulse Rifle Performance ------------- Evolutions (0) 0 Regions Visited (3) 600 Robots Destroyed (31) 155 Value Destroyed (906) 906 Prototype IDs (11) 220 Alien Tech Used (0) 0 Bonus (2000) 2000 TOTAL SCORE: 3881 Bonus ------- Delivered SUBCON Basin 2000 Cogmind --------- Core Integrity 0/250 Matter 104/300 Energy 116/125 System Corruption 0% Temperature Warning (359) Movement Rolling (175) Ox5 Location -9/Recycling Parts ------- > --- POWER (1) -------- Light Ion Engine > --- PROPULSION (2) --- Compact Wheel > --- UTILITY (2) ------ Huge Storage Unit > --- WEAPON (2) ------- Subdweller Laser Battle Cannon > --- INVENTORY (25) --- Subdweller Monowheel VTOL Module VTOL Module Gun Armor Tech Extrapolator Subdweller Beam Cannon Peak State ------------ > --- POWER ------------ (None) > --- PROPULSION ------- Light Treads Subdweller Monowheel > --- UTILITY ---------- Huge Storage Unit Subdweller Optics > --- WEAPON ----------- Subdweller Beam Cannon Battle Cannon > --- INVENTORY -------- VTOL Module VTOL Module Gun Armor Subdweller Laser Light Cannon Subdweller Shrapnel Launcher SUBCON Basin [Rating: 29] Favorites ----------- Power Subdweller Power Source Engine Subdweller Power Source Propulsion Light Treads Treads Light Treads Wheel Subdweller Monowheel Flight Unit VTOL Module Utility Huge Storage Unit Device Subdweller Optics Storage Huge Storage Unit Weapon Subdweller Beam Cannon Energy Gun Subdweller Laser Energy Cannon Subdweller Beam Cannon Ballistic Cannon Battle Cannon Launcher Subdweller Shrapnel Launcher Build | -11 -10 -10 -9 ------- Run | Yrd Mat Sub Rec Slots Evolved . | . . . . Power . | . . . . Propulsion . | . . . . Utility . | . . . . Weapon . | . . . . Parts Attached 19 | . 3 11 5 Power 2 | . . 1 1 Engine 2 | . . 1 1 Core . | . . . . Reactor . | . . . . Propulsion 8 | . 3 3 2 Treads 2 | . . 2 . Leg . | . . . . Wheel 3 | . . 1 2 Hover . | . . . . Flight 3 | . 3 . . Utility 2 | . . 2 . Device 1 | . . 1 . Storage 1 | . . 1 . Processor . | . . . . Hackware . | . . . . Protection . | . . . . Artifact . | . . . . Weapon 7 | . . 5 2 Energy Gun 1 | . . 1 . Energy Cannon 1 | . . 1 . Ballistic Gun . | . . . . Ballistic Cannon 3 | . . 3 . Launcher 2 | . . . 2 Special Weapon . | . . . . Impact Weapon . | . . . . Slashing Weapon . | . . . . Piercing Weapon . | . . . . Special Melee Weapon . | . . . . Unidentified Prototypes . | . . . . Parts Lost 9 | . . 3 6 Power 1 | . . 1 . Propulsion 3 | . . 1 2 Utility 1 | . . . 1 Weapon 4 | . . 1 3 Highest Loss Streak 3 | . . 2 3 To Critical Strikes 1 | . . 1 . Average Backups 5 | 1 4 5 6 Power . | . . . . Propulsion 2 | 1 2 1 2 Utility . | . . . 1 Weapon 2 | . . 2 2 Tool/Special . | . . . . Unused Backups 3 | . . 1 2 Power . | . . . . Propulsion 1 | . . 1 . Utility 2 | . . . 2 Weapon . | . . . . Tool/Special . | . . . . Average Slot Usage (%) 79 | . 20 87 72 Engine 3 | . . 3 3 Treads 10 | . . 16 . Wheel 11 | . . 8 16 Flight 2 | . 20 2 . Device 11 | . . 13 9 Storage 13 | . . 13 14 Energy Cannon 10 | . . 10 13 Ballistic Cannon 14 | . . 16 11 Peak Build Rating 29 | . 4 29 29 Average Rating 18 | . 3 15 25 On Entrance 8 | . . 4 29 Naked Turns 17 | . 17 . . Heaviest Build 98 | . . 98 98 Greatest Support 40 | 3 8 40 26 Greatest Overweight (x) 30 | . . 4 30 Average Overweight (x) 3 | . . 3 9 Largest Inventory Capacity 25 | 5 5 25 25 Average Capacity 23 | 5 5 24 25 Most Carried 22 | 2 5 21 22 Average Carried 12 | 1 4 9 20 Final Capacity 25 | 5 5 25 25 Final Carried 21 | 2 5 21 6 Class Distribution -------------------- 89% | Mutant 6% | Scavenger-Mutant 3% | Sprinter Dominant Class ---------------- Sprinter | -10/Materials Mutant | -10/Subcaves Mutant | -9/Recycling Resources | -11 -10 -10 -9 ----------- Run | Yrd Mat Sub Rec Matter Collected 670 | 102 . 352 216 Remotely . | . . . . Salvage Created 869 | . . 159 710 Parts 50 | . . 11 39 Haulers Intercepted . | . . . . Recyclers Shooed . | . . . . Parts Field Recycled . | . . . . Retrieved Matter . | . . . . Parts Self-Destructed 10 | . . 10 . Prevented . | . . . . Kills | -11 -10 -10 -9 ------- Run | Yrd Mat Sub Rec Combat Hostiles Destroyed 20 | . . 9 11 Guns 1 | . . 1 . Cannons 9 | . . 8 1 AOE 10 | . . . 10 Classes Destroyed 12 | . . 2 10 Worker 2 | . . . 2 Builder 5 | . . . 5 Recycler 3 | . . . 3 Swarmer 3 | . . 3 . Grunt 3 | . . . 3 Brawler 1 | . . . 1 Duelist 1 | . . . 1 Demolisher 2 | . . . 2 Hunter 1 | . . . 1 Programmer 3 | . . . 3 Subdweller 6 | . . 6 . Scrapper 1 | . . . 1 Best Kill Streak 13 | . . 2 13 Combat Bots Only 10 | . . 2 10 Max Kills in Single Turn 4 | . . 1 4 Gunslinging . | . . . . Exploded 3 | . . . 3 Melee . | . . . . Uniques/NPCs Destroyed . | . . . . Combat | -11 -10 -10 -9 -------- Run | Yrd Mat Sub Rec Hostile Shots Fired 88 | . 3 62 23 Missed 27 | . 1 22 4 Hits 61 | . 2 40 19 Projectile 61 | . 2 40 19 AOE 1 | . . . 1 Critical Strikes 3 | . . 2 1 Damage Taken 1190 | . 21 679 490 Core 254 | . 21 94 139 Absorbed by Shields . | . . . . Core Remaining (%) 100 | 100 . . . Volleys Fired 62 | . . 35 27 Largest 2 | . . 2 2 Hottest 140 | . . 113 140 Shots Fired 117 | . . 70 47 Gun 9 | . . 4 5 Cannon 102 | . . 66 36 Launcher 6 | . . . 6 Special . | . . . . Kinetic 79 | . . 55 24 Thermal 37 | . . 15 22 Explosive 1 | . . . 1 Electromagnetic . | . . . . Robot Hit Streak 11 | . . 9 11 Robot Miss Streak 7 | . . 7 1 Penetration Max . | . . . . Secondary Targets . | . . . . Shots Hit Robots 74 | . . 43 31 Core Hits 44 | . . 15 29 Critical Kills 1 | . . . 1 Critical Parts Destroyed . | . . . . Critical Strikes 1 | . . . 1 Meltdown 1 | . . . 1 Melee Attacks . | . . . . Impact . | . . . . Slashing . | . . . . Piercing . | . . . . Sneak Attacks . | . . . . Combat Hostiles . | . . . . Follow-up Attacks . | . . . . Damage Inflicted 3160 | . . 872 2288 Guns 139 | . . 58 81 Cannons 1357 | . . 814 543 Explosions 1664 | . . . 1664 Melee . | . . . . Ramming . | . . . . Kinetic 2540 | . . 729 1811 Thermal 523 | . . 143 380 Explosive 97 | . . . 97 Electromagnetic . | . . . . Impact . | . . . . Slashing . | . . . . Piercing . | . . . . Highest Corruption . | . . . . Average Corruption . | . . . . Corruption Purged . | . . . . Corruption Blocked . | . . . . Overload Shots . | . . . . Overflow Damage 238 | . . 17 221 Projectiles 34 | . . 17 17 Explosions 204 | . . . 204 Melee . | . . . . Knockbacks 12 | . . 9 3 Impact . | . . . . Kinetic 11 | . . 8 3 Secondary 1 | . . 1 . Self-Inflicted Damage 91 | . . . 91 Shots 3 | . . . 3 Rammed . | . . . . Targets Rammed . | . . . . Kicked . | . . . . Crushed . | . . . . Highest Temperature 347 | . . 10 347 Average Temperature 99 | . . 5 103 Received Heat Transfer 358 | . 12 129 217 Effects 1 | . . . 1 Interference 1 | . . . 1 Siege Activations . | . . . . Martial Activations . | . . . . Shielding Activations . | . . . . Robots Disrupted . | . . . . Combat Hostiles . | . . . . Robots Corrupted . | . . . . Combat Hostiles . | . . . . Parts Fried . | . . . . Impact Corruptions . | . . . . Robots Melted 1 | . . . 1 Combat Hostiles . | . . . . Parts Melted 1 | . . . 1 Heat Transferred 577 | . . 186 391 Parts Sabotaged . | . . . . Parts Stolen . | . . . . Parts Stripped . | . . . . Power Chain Reactions . | . . . . Alert | -11 -10 -10 -9 ------- Run | Yrd Mat Sub Rec Maximum Alert Level 1 | . . . 1 Low Security (%) 85 | 100 100 . 83 Level 1 14 | . . . 16 Level 2 . | . . . . Level 3 . | . . . . Level 4 . | . . . . Level 5 . | . . . . High Security . | . . . . Max Security . | . . . . Peak Influence 255 | . 30 . 255 Initial 6 | . . . 6 Average 94 | . 5 . 106 Influence Increases 606 | . 30 150 426 Destroy 0b10 Robot/C 260 | . . 60 200 Destroy 0b10 Robot/NC 70 | . . . 70 Disable Machine 75 | . . . 75 Destroy Structure 81 | . . . 81 Lose Combat Pursuer 120 | . 30 90 . Influence Decreases 604 | . 10 156 438 Entered New Map 18 | . . 10 8 Time Decay 516 | . 10 136 370 Lost Part 70 | . . 10 60 Squads Dispatched . | . . . . Investigation . | . . . . Extermination . | . . . . Reinforcement . | . . . . Assault . | . . . . Garrison . | . . . . Intercept . | . . . . Searches Triggered . | . . . . Construction Impeded . | . . . . Haulers Reinforced . | . . . . Active Scanning Responses . | . . . . Cargo Convoy Interrupts . | . . . . Stealth | -11 -10 -10 -9 --------- Run | Yrd Mat Sub Rec Distress Signals . | . . . . Communications Jammed . | . . . . Distress Signals . | . . . . Times Spotted 24 | . 3 15 6 Peak Tracking Total 3 | . 3 3 3 Tactical Retreats 6 | . 1 5 . Traps | -11 -10 -10 -9 ------- Run | Yrd Mat Sub Rec Traps Triggered 1 | . . 1 . Indirectly . | . . . . Trap Hack Attempts . | . . . . Triggered . | . . . . Disarmed . | . . . . Reprogrammed . | . . . . Reused . | . . . . Traps Extracted . | . . . . Installed . | . . . . Triggered . | . . . . Machines | -11 -10 -10 -9 ---------- Run | Yrd Mat Sub Rec Machines Disabled 7 | . . 2 5 Max in Single Turn 5 | . . 1 5 Machines Repaired . | . . . . Machines Dismantled . | . . . . Machines Sabotaged . | . . . . Overloaded Fab Kills . | . . . . Hacking | -11 -10 -10 -9 --------- Run | Yrd Mat Sub Rec Machines Accessed 3 | . . 3 . Terminals . | . . . . Fabricators . | . . . . Repair Stations . | . . . . Recycling Units . | . . . . Scanalyzers . | . . . . Garrison Access . | . . . . Total Hacks 4 | . . 4 . Successful 4 | . . 4 . Failed . | . . . . Catastrophic . | . . . . Database Lockouts . | . . . . Manual . | . . . . Terminals . | . . . . Fabricators . | . . . . Repair Stations . | . . . . Recycling Units . | . . . . Scanalyzers . | . . . . Garrison Access . | . . . . Terminal Hacks 4 | . . 4 . Record 1 | . . 1 . Open Door 1 | . . 1 . Proto ID Catalog 1 | . . 1 . Release Object 1 | . . 1 . Fabricator Hacks . | . . . . Repair Station Hacks . | . . . . Recycling Unit Hacks . | . . . . Scanalyzer . | . . . . Garrison Access Hacks . | . . . . Unauthorized Hacks . | . . . . Terminals . | . . . . Fabricators . | . . . . Repair Stations . | . . . . Recycling Units . | . . . . Scanalyzers . | . . . . Garrison Access . | . . . . Data Cores Recovered . | . . . . Used . | . . . . Hacking Detections . | . . . . Full Trace Events . | . . . . Feedback Events . | . . . . Feedback Blocked . | . . . . Robot Schematics Acquired . | . . . . Robots Built . | . . . . Authchips . | . . . . Time . | . . . . Total Robot Build Rating . | . . . . Part Schematics Acquired . | . . . . Parts Built . | . . . . Authchips . | . . . . Time . | . . . . Total Part Build Rating . | . . . . Parts Repaired . | . . . . Time . | . . . . Parts Recycled . | . . . . Recycled Matter . | . . . . Retrieved Matter . | . . . . Retrieved Components . | . . . . Parts Scanalyzed . | . . . . Part Schematics Acquired . | . . . . Parts Damaged . | . . . . Bothacking | -11 -10 -10 -9 ------------ Run | Yrd Mat Sub Rec Used RIF Installer . | . . . . Robots Hacked . | . . . . Non-combat . | . . . . Combat . | . . . . Robot Hacks Applied . | . . . . Relay Couplers Released . | . . . . Fabnet Peak Effective % . | . . . . Robots Rewired 1 | . . . 1 Allies Hacked . | . . . . Hacks Repelled . | . . . . Allies | -11 -10 -10 -9 -------- Run | Yrd Mat Sub Rec Total Allies 1 | . . . 1 Largest Group 1 | . . . 1 Highest-Rated Group 7 | . . . 7 Highest-Rated Ally 7 | . . . 7 Total Orders . | . . . . Ally Attacks . | . . . . Total Damage . | . . . . Kills . | . . . . Allies Corrupted . | . . . . Allies Melted . | . . . . Intel | -11 -10 -10 -9 ------- Run | Yrd Mat Sub Rec Active Infowar (turns) 878 | . . 878 . Optics 878 | . . 878 . Robot Analysis Total . | . . . . Derelict Logs Recovered . | . . . . Drone Launches . | . . . . Drone Recoveries . | . . . . Exploration | -11 -10 -10 -9 ------------- Run | Yrd Mat Sub Rec Turns Passed 2520 | 12 97 1540 871 Spaces Moved 941 | 20 151 608 162 Core 89 | 20 32 . 37 Treads 211 | . . 205 6 Legs . | . . . . Wheels 466 | . . 348 118 Hover . | . . . . Flight 175 | . 119 55 1 Fastest Speed 32 | 50 32 32 135 Average Speed 237 | 50 35 229 474 Slowest Speed 1550 | 50 50 480 1550 Overloaded Moves . | . . . . Propulsion Burnouts . | . . . . Robots Hopped 3 | . 3 . . Potential Cave-ins . | . . . . Cave-ins Triggered . | . . . . Exploration Rate (%) 23 | 3 38 33 20 Regions Visited 3 Branch Regions 2 Pre-discovered Areas . | . . . . Known Exits Taken . | . . . . Unknown Exits Taken 3 | 1 1 1 . Scrap Searched 3 | . . 3 . Spaces Dug . | . . . . Terrain Destroyed 105 | . . 5 100 Melee . | . . . . Projectile 10 | . . 5 5 AOE 95 | . . . 95 Terrain Rammed . | . . . . Walls Destroyed . | . . . . Machines Disabled . | . . . . Actions | -11 -10 -10 -9 --------- Run | Yrd Mat Sub Rec Total 1103 | 21 189 679 214 Wait 51 | . 34 15 2 Move 934 | 19 146 607 162 Hop 1 | . 1 . . Pick Up 18 | 2 4 8 4 Fast Attach 6 | . 2 3 1 Attach 10 | . 1 5 4 Detach . | . . . . Swap 11 | . . 4 7 Drop 4 | . 1 2 1 Fire 62 | . . 35 27 Melee . | . . . . Ram . | . . . . Kick . | . . . . Crush . | . . . . Escape Stasis . | . . . . Rewire 6 | . . . 6 Trap . | . . . . Miscellaneous . | . . . . Route ------- -11/Scrapyard -10/Materials (discovered 3 exits: [*Mat] / [*Min] / *Sub) -10/Subcaves -9/Recycling History --------- Turn | Location | Event 4 | -11/Scrapyard | Discovered new exit (range 15) 13 | -11/Scrapyard | Entered Materials 49 | -10/Materials | Discovered new exit (range 14) 70 | -10/Materials | Discovered new exit (range 16) 109 | -10/Materials | Discovered new exit (range 4) 110 | -10/Materials | Entered Subcaves 111 | -10/Subcaves | Ambushed by Subdwellers from Twisted Machinery 111 | -10/Subcaves | Approached by a straggling Scientist 253 | -10/Subcaves | Visited 4L-MR0's lab 290 | -10/Subcaves | Found Prototype Protection 336 | -10/Subcaves | Identified Gun Armor 418 | -10/Subcaves | Build established: Mutant 443 | -10/Subcaves | Shifting Twisted Machinery released Sub. Monowheel 564 | -10/Subcaves | Shifting Twisted Machinery released Battle Cannon 1123 | -10/Subcaves | Discovered new exit (range 12) 1244 | -10/Subcaves | Found SUBCON Basin 1650 | -10/Subcaves | Entered Recycling 1712 | -9/Recycling | Destroyed 10 combat bots 2368 | -9/Recycling | Scanned before Scraplab entrance 2388 | -9/Recycling | Entered Scraplab 2407 | -9/Recycling | Discovered new exit (range 4) 2490 | -9/Recycling | Angered Scraplab inhabitants 2498 | -9/Recycling | Core integrity fell below 50% 2507 | -9/Recycling | Core integrity fell below 20% 2521 | -9/Recycling | Destroyed by 2D-WPX(j) with Overtuned Pulse Rifle Last Messages --------------- 02409_ BR-K52(c) is busy at their terminal. 02443_ Connecting with Scrap Engine Manual... 02450_ Dropped SUBCON Basin. 02452_ D3-LGI(c): "Here's your Tech Extrapolator." 02452_ BR-K52(c) is busy at their terminal. 02454_ D3-LGI(c): "That one won't explode like mine would if you tried to take it. I don't think." 02456_ Acquired Tech Extrapolator. 02474_ D3-LGI(c) is busy at their terminal. 02485_ The wall retracts into the floor. 02491_ Mni. Grenade Launcher destroyed. 02495_ Wheel destroyed. 02499_ 5G-LJU(j) destroyed. 02507_ 2D-WPX(j) knocked back. 02511_ 2D-WPX(j) heat short circuits Ovr. Titanium Leg. 02513_ 2D-WPX(j) knocked back. 02513_ Lgt. Cannon destroyed. 02518_ Overheating: System interference. 02518_ Battle Cannon temporarily disabled. 02519_ Critical hit (Burn: +50). Map ----- +----------------------------------------------------+ | # ##????????????????????? | | #????????????????????? | | #????????????????????? | | #????????????????????? | | + "###????????????????????? | | #" % [ ##????????????????????? | | # % "#????????????????????? | | # % "#????????????????????? | | #" % "#????????????????????? | | ##" % "##???????????????????? | | ### #???????????????????? | | ## # % ##??????????????????? | | ## #% #??????????????????? | | #### ##??????????????????? | | ## # #???????????????????? | | # # #???????????????????? | | ### #???????????????????? | | + % #???????????????????? | | #####"### #???????????????????? | | #??## ######???????????????????? | | #+#########????????????????????????? | | %!%!%! #?????????######?????????? | | ! ##????????# #?????????? | | = #????????# ######?#??? | | #????##### #;#*! #??? | | ###### + @ !%[j #?? | | ##!!!# ### ##;= #?? | | ###!!!# #?# #??? % #?? | | #?# #???# ###?? | | #?######???# #???? | | #??????#####+####? | | #??????#"" "#? | | #########??????#"& ""#? | | # "T ##??????????????#" "#? | | ##########???????????????#"" X"#? | | ?????????????????????????#"& & "#? | | ?????????????????????????#" ""#? | | ?????????????????????????#"X "#? | | ?????????????????????????#" ###? | | ?????????????????????????# "" #<#? | | ?????????????????????????# """ #? | | ?????????????????????????##########? | | ???????????????????????????????????? | | ???????????????????????????????????? | | ???????????????????????????????????? | | ???????????????????????????????????? | | ???????????????????????????????????? | | ???????????????????????????????????? | | ???????????????????????????????????? | | ???????????????????????????????????? | +----------------------------------------------------+ Best States ------------- Heat Dissipation 25 Energy Generation 15 Energy Capacity 200 Matter Stores 250 Matter Capacity 300 Sight Range 21 Terrain Scan Density 10 Evasion (%) 63 Recoil Reduction 2 Item Schematics ----------------- None Robot Schematics ------------------ None Fabricated ------------ Nothing Repaired ---------- Nothing Alien Tech Used ----------------- None Achievements -------------- None Challenges ------------ None Game ------ Seed ExplosiveEtherialShovel Manual? 1 Play Time 00:09:58 Cumulative 335.6 hours Start 2025.06.30 @ 17:50:02 End 2025.06.30 @ 17:57:16 Sessions 1 Manual Loads 0 Difficulty Rogue Special Mode None Game No. 322 Rogue 286 Adventurer 36 Explorer 0 Win Type - Total 12 Types 4/0/8/0/0/0/0/0/0/0 Lore% 70 Gallery% 82 Achievement% 74 Wizard Run 0 Options --------- Layout 0 ASCII 0 Keyboard 0 Movement Mouse Keybinds 0 Fullscreen 1 Font 18/SmallcapsGlow Map View 76x50 Zoom Use 0% Tactical HUD 1 Map Filters NONE Filters SHIFT_HUE(315) Steam 1 RUN: 2605d31b-4347-4ceb-a9a6-a5645a5a2049